fUST/lending_fUST_20251216
["ID","MTS","AMOUNT","RATE_DAILY","PERIOD"]
[398586279,1765857075707,-500.0,0.00012054,2]
[398586280,1765857075716,-2748.55,0.00012054,2]
[398586281,1765857075725,-825.5,0.00012054,2]
[398586282,1765857075734,-708.11,0.00012054,2]
[398586283,1765857075743,-2322.09,0.00012054,2]
[398586284,1765857075753,-2125.4,0.00012054,2]
[398586285,1765857075762,-500.0,0.00012054,2]
[398586286,1765857075773,-500.0,0.00012054,2]
[398586287,1765857075782,-500.0,0.00012054,2]
[398586288,1765857075792,-6830.61,0.00012054,2]
[398586289,1765857075801,-8377.94,0.00012054,2]
[398586290,1765857075810,-500.0,0.00012054,2]
[398586291,1765857075819,-2121.87,0.00012054,2]
[398586292,1765857075828,-500.0,0.00012054,2]
[398586293,1765857075838,-858.84,0.00012054,2]
[398586294,1765857075847,-945.29,0.00012054,2]
[398586295,1765857075856,-1092.05,0.00012054,2]
[398586296,1765857075865,-580.26,0.00012054,2]
[398586297,1765857075875,-541.03662646,0.00012054,2]
[398586298,1765857075884,-500.0,0.00012054,2]
[398586299,1765857075893,-500.0,0.00012054,2]
[398586300,1765857075902,-500.0,0.00012054,2]
[398586301,1765857075911,-2445.72,0.00012054,2]
[398586302,1765857075920,-500.0,0.00012054,2]
[398586303,1765857075928,-3903.36,0.00012054,2]
[398586304,1765857075938,-537.08,0.00012054,2]
[398586305,1765857075946,-618.36,0.00012054,2]
[398586306,1765857075955,-500.0,0.00012054,2]
[398586307,1765857075965,-4243.55,0.00012054,2]
[398586308,1765857075975,-500.0,0.00012054,2]
[398586309,1765857075983,-500.0,0.00012054,2]
[398586310,1765857075992,-1422.62,0.00012054,2]
[398586311,1765857076003,-800.38,0.00012054,2]
[398586312,1765857076012,-1202.09,0.00012054,2]
[398586313,1765857076021,-799.6,0.00012054,2]
[398586314,1765857076030,-520.25,0.00012054,2]
[398586315,1765857076040,-14584.18,0.00012054,2]
[398586316,1765857076048,-500.0,0.00012054,2]
[398586317,1765857076057,-2341.35,0.00012054,2]
[398586318,1765857076066,-500.0,0.00012054,2]
[398586319,1765857076075,-614.63,0.00012054,2]
[398586320,1765857076085,-2042.99,0.00012054,2]
[398586321,1765857076094,-3921.7,0.00012054,2]
[398586322,1765857076103,-500.0,0.00012054,2]
[398586323,1765857076112,-2154.94,0.00012054,2]
[398586324,1765857076122,-1164.37,0.00012054,2]
[398586325,1765857076133,-1452.17,0.00012054,2]
[398586326,1765857076143,-940.07,0.00012054,2]
[398586327,1765857076152,-500.0,0.00012054,2]
[398586328,1765857076161,-3354.89,0.00012054,2]
[398586329,1765857076172,-500.0,0.00012054,2]
[398586330,1765857076181,-885.63,0.00012054,2]
[398586331,1765857076190,-500.0,0.00012054,2]
[398586332,1765857076199,-583.17,0.00012054,2]
[398586333,1765857076208,-934.17,0.00012054,2]
[398586334,1765857076217,-500.0,0.00012054,2]
[398586335,1765857076227,-500.0,0.00012054,2]
[398586336,1765857076236,-2662.12,0.00012054,2]
[398586337,1765857076246,-1389.33,0.00012054,2]
[398586338,1765857076255,-2691.53,0.00012054,2]
[398586339,1765857076266,-500.0,0.00012054,2]
[398586340,1765857076275,-500.0,0.00012054,2]
[398586341,1765857076284,-500.0,0.00012054,2]
[398586342,1765857076294,-500.0,0.00012054,2]
[398586343,1765857076303,-947.29,0.00012054,2]
[398586344,1765857076312,-500.0,0.00012054,2]
[398586345,1765857076321,-500.0,0.00012054,2]
[398586346,1765857076330,-1434.18,0.00012054,2]
[398586347,1765857076340,-607.29,0.00012054,2]
[398586348,1765857076349,-504.51642211,0.00012054,2]
[398586349,1765857076358,-500.0,0.00012054,2]
[398586350,1765857076367,-500.0,0.00012054,2]
[398586351,1765857076376,-500.0,0.00012054,2]
[398586352,1765857076386,-489.64836921,0.00012054,2]
[398586353,1765857076395,-3493.92,0.00012054,2]
[398586354,1765857076405,-500.0,0.00012054,2]
[398586355,1765857076414,-500.0,0.00012054,2]
[398586356,1765857076423,-1734.78,0.00012054,2]
[398586357,1765857076433,-529.53,0.00012054,2]
[398586358,1765857076442,-500.0,0.00012054,2]
[398586359,1765857076451,-1497.62,0.00012054,2]
[398586360,1765857076461,-1890.34,0.00012054,2]
[398586361,1765857076470,-1724.14,0.00012054,2]
[398586362,1765857076479,-1321.15,0.00012054,2]
[398586363,1765857076488,-475.919632,0.00012054,2]
[398586364,1765857076497,-502.2313529,0.00012054,2]
[398586365,1765857076506,-297.012046,0.00012054,2]
[398586366,1765857076515,-627.84,0.00012054,2]
[398586367,1765857076524,-1136.33,0.00012054,2]
[398586368,1765857076533,-500.0,0.00012054,2]
[398586369,1765857076542,-500.0,0.00012054,2]
[398586370,1765857076551,-2584.7,0.00012054,2]
[398586371,1765857076561,-500.0,0.00012054,2]
[398586372,1765857076570,-906.3,0.00012054,2]
[398586373,1765857076579,-523.47,0.00012054,2]
[398586374,1765857076588,-500.0,0.00012054,2]
[398586375,1765857076596,-860.33,0.00012054,2]
[398586376,1765857076605,-500.0,0.00012054,2]
[398586377,1765857076614,-1103.9,0.00012054,2]
[398586378,1765857076623,-526.2,0.00012054,2]
[398586379,1765857076633,-625.36,0.00012054,2]
[398586380,1765857076643,-500.0,0.00012054,2]
[398586381,1765857076652,-500.0,0.00012054,2]
[398586382,1765857076662,-500.0,0.00012054,2]
[398586383,1765857076671,-3387.17,0.00012054,2]
[398586384,1765857076679,-838.05,0.00012054,2]
[398586385,1765857076688,-500.0,0.00012054,2]
[398586386,1765857076697,-571.99582958,0.00012054,2]
[398586387,1765857076707,-717.42,0.00012054,2]
[398586388,1765857076716,-500.0,0.00012054,2]
[398586389,1765857076725,-11122.08,0.00012054,2]
[398586390,1765857076734,-1435.24,0.00012054,2]
[398586391,1765857076744,-645.68,0.00012054,2]
[398586392,1765857076753,-22080.53,0.00012054,2]
[398586393,1765857076762,-3719.53,0.00012054,2]
[398586394,1765857076773,-500.0,0.00012054,2]
[398586395,1765857076782,-835.99,0.00012054,2]
[398586396,1765857076791,-1808.12,0.00012054,2]
[398586397,1765857076800,-500.0,0.00012054,2]
[398586398,1765857076810,-500.0,0.00012054,2]
[398586399,1765857076818,-500.0,0.00012054,2]
[398586400,1765857076827,-500.0,0.00012054,2]
[398586401,1765857076837,-8246.11,0.00012054,2]
[398586402,1765857076846,-1665.52,0.00012054,2]
[398586403,1765857076855,-500.0,0.00012054,2]
[398586404,1765857076865,-500.0,0.00012054,2]
[398586405,1765857076873,-500.0,0.00012054,2]
[398586406,1765857076883,-505.05,0.00012054,2]
[398586407,1765857076891,-500.0,0.00012054,2]
[398586408,1765857076900,-5019.38,0.00012054,2]
[398586409,1765857076909,-688.63,0.00012054,2]
[398586410,1765857076918,-980.38,0.00012054,2]
[398586411,1765857076929,-2863.98,0.00012054,2]
[398586412,1765857076938,-2333.27,0.00012054,2]
[398586413,1765857076947,-500.0,0.00012054,2]
[398586414,1765857076956,-500.0,0.00012054,2]
[398586415,1765857076965,-500.0,0.00012054,2]
[398586416,1765857076974,-884.98,0.00012054,2]
[398586417,1765857076983,-2011.13,0.00012054,2]
[398586418,1765857076992,-500.0,0.00012054,2]
[398586419,1765857077002,-561.14,0.00012054,2]
[398586420,1765857077019,-1161.7,0.00012054,2]
[398586421,1765857077028,-5555.9,0.00012054,2]
[398586422,1765857077179,-253.52094257,0.00012054,2]
[398586423,1765857077189,-1243.71,0.00012054,2]
[398586424,1765857077198,-35354.14,0.00012054,2]
[398586425,1765857077207,-3963.15,0.00012054,2]
[398586426,1765857077217,-9588.87,0.00012054,2]
[398586427,1765857077227,-500.0,0.00012054,2]
[398586428,1765857077236,-1419.14,0.00012054,2]
[398586429,1765857077246,-500.0,0.00012054,2]
[398586430,1765857077257,-1172.55,0.00012054,2]
[398586431,1765857077266,-500.0,0.00012054,2]
[398586432,1765857077276,-500.0,0.00012054,2]
[398586433,1765857077285,-2089.03,0.00012054,2]
[398586434,1765857077294,-500.0,0.00012054,2]
[398586435,1765857077303,-2257.39,0.00012054,2]
[398586436,1765857077312,-1097.79,0.00012054,2]
[398586437,1765857077321,-1991.38,0.00012054,2]
[398586438,1765857077330,-841.22,0.00012054,2]
[398586439,1765857077340,-500.0,0.00012054,2]
[398586440,1765857077349,-500.0,0.00012054,2]
[398586441,1765857077358,-500.0,0.00012054,2]
[398586442,1765857077368,-500.0,0.00012054,2]
[398586443,1765857077377,-800.38,0.00012054,2]
[398586444,1765857077386,-1431.03,0.00012054,2]
[398586445,1765857077395,-500.0,0.00012054,2]
[398586446,1765857077404,-8351.41,0.00012054,2]
[398586447,1765857077413,-500.0,0.00012054,2]
[398586448,1765857077422,-1423.76,0.00012054,2]
[398586449,1765857077432,-896.79,0.00012054,2]
[398586450,1765857077442,-500.0,0.00012054,2]
[398586451,1765857077452,-1140.27,0.00012054,2]
[398586452,1765857077461,-4075.24,0.00012054,2]
[398586453,1765857077472,-467.3106221,0.00012054,2]
[398586454,1765857077482,-914.19,0.00012054,2]
[398586455,1765857077491,-500.0,0.00012054,2]
[398586456,1765857077501,-500.0,0.00012054,2]
[398586457,1765857077510,-3247.84,0.00012054,2]
[398586458,1765857077520,-1445.43,0.00012054,2]
[398586459,1765857077529,-500.0,0.00012054,2]
[398586460,1765857077538,-940.6,0.00012054,2]
[398586461,1765857077547,-500.0,0.00012054,2]
[398586462,1765857077557,-500.0,0.00012054,2]
[398586463,1765857077567,-500.0,0.00012054,2]
[398586464,1765857077576,-1956.75,0.00012054,2]
[398586465,1765857077585,-372.84301913,0.00012054,2]
[398586466,1765857077594,-500.0,0.00012054,2]
[398586467,1765857077603,-1069.42,0.00012054,2]
[398586468,1765857077612,-2026.56,0.00012054,2]
[398586469,1765857077621,-1628.96,0.00012054,2]
[398586470,1765857077630,-1842.29,0.00012054,2]
[398586471,1765857077639,-1954.46,0.00012054,2]
[398586472,1765857077648,-500.0,0.00012054,2]
[398586473,1765857077657,-500.0,0.00012054,2]
[398586474,1765857077667,-500.0,0.00012054,2]
[398586475,1765857077676,-1249.58,0.00012054,2]
[398586476,1765857077685,-5203.28,0.00012054,2]
[398586477,1765857077694,-2367.41,0.00012054,2]
[398586478,1765857077705,-3863.02,0.00012054,2]
[398586479,1765857077714,-500.0,0.00012054,2]
[398586480,1765857077723,-2306.5,0.00012054,2]
[398586481,1765857077732,-5137.41,0.00012054,2]
[398586482,1765857077741,-500.0,0.00012054,2]
[398586483,1765857077751,-500.0,0.00012054,2]
[398586484,1765857077760,-674.15,0.00012054,2]
[398586485,1765857077769,-500.0,0.00012054,2]
[398586486,1765857077778,-560.29,0.00012054,2]
[398586487,1765857077788,-500.0,0.00012054,2]
[398586488,1765857077797,-2457.45,0.00012054,2]
[398586489,1765857077807,-1620.3,0.00012054,2]
[398586490,1765857077816,-935.88,0.00012054,2]
[398586491,1765857077826,-2175.69,0.00012054,2]
[398586492,1765857077836,-500.0,0.00012054,2]
[398586493,1765857077846,-500.0,0.00012054,2]
[398586494,1765857077856,-831.4,0.00012054,2]
[398586495,1765857077865,-227.51638565,0.00012054,2]
[398586496,1765857077874,-537.44,0.00012054,2]
[398586497,1765857077883,-500.0,0.00012054,2]
[398586498,1765857077893,-500.0,0.00012054,2]
[398586499,1765857077902,-500.0,0.00012054,2]
[398586500,1765857077911,-500.0,0.00012054,2]
[398586501,1765857077920,-500.0,0.00012054,2]
[398586502,1765857077929,-1150.49,0.00012054,2]
[398586503,1765857077939,-1109.49,0.00012054,2]
[398586504,1765857077948,-3092.96547559,0.00012089,2]
[398586505,1765857077958,-1862.16509977,0.00012111,2]
[398586506,1765857077967,-176.45537928,0.00012135,2]
[398586507,1765857077977,-151.0,0.00012154,2]
[398586508,1765857077987,-151.0,0.00012154,2]
[398586509,1765857077996,-151.0,0.00012154,2]
[398586510,1765857078005,-151.0,0.00012154,2]
[398586511,1765857078014,-151.0,0.00012154,2]
[398586512,1765857078023,-151.0,0.00012154,2]
[398586513,1765857078033,-151.0,0.00012154,2]
[398586514,1765857078042,-152.0,0.00012154,2]
[398586515,1765857078052,-151.0,0.00012154,2]
[398586516,1765857078062,-156.0,0.00012154,2]
[398586517,1765857078071,-166.5314635,0.00012154,2]
[398586518,1765857078081,-151.0,0.00012154,2]
[398586519,1765857078090,-156.0,0.00012154,2]
[398586520,1765857078100,-269.85541096,0.00012154,2]
[398586521,1765857078109,-151.0,0.00012154,2]
[398586522,1765857078118,-156.0,0.00012154,2]
[398586523,1765857078128,-151.0,0.00012154,2]
[398586524,1765857078140,-156.0,0.00012154,2]
[398586525,1765857078149,-334.0,0.00012154,2]
[398586526,1765857078165,-151.0,0.00012154,2]
[398586527,1765857078187,-156.0,0.00012154,2]
[398586528,1765857078204,-334.0,0.00012154,2]
[398586529,1765857078225,-151.0,0.00012154,2]
[398586530,1765857078245,-156.0,0.00012154,2]
[398586531,1765857078263,-334.0,0.00012154,2]
[398586532,1765857078281,-151.0,0.00012154,2]
[398586533,1765857078298,-156.0,0.00012154,2]
[398586534,1765857078312,-334.0,0.00012154,2]
[398586535,1765857078329,-151.0,0.00012154,2]
[398586536,1765857078348,-156.0,0.00012154,2]
[398586537,1765857078367,-334.0,0.00012154,2]
[398586538,1765857078379,-151.0,0.00012154,2]
[398586539,1765857078401,-156.0,0.00012154,2]
[398586540,1765857078415,-334.0,0.00012154,2]
[398586541,1765857078431,-151.0,0.00012154,2]
[398586542,1765857078444,-156.0,0.00012154,2]
[398586543,1765857078459,-334.0,0.00012154,2]
[398586544,1765857078474,-151.0,0.00012154,2]
[398586545,1765857078488,-334.0,0.00012154,2]
[398586546,1765857078503,-156.0,0.00012154,2]
[398586547,1765857078517,-151.0,0.00012154,2]
[398586548,1765857078532,-334.0,0.00012154,2]
[398586549,1765857078546,-151.0,0.00012154,2]
[398586550,1765857078560,-151.0,0.00012154,2]
[398586551,1765857078574,-151.0,0.00012154,2]
[398586552,1765857078589,-151.0,0.00012154,2]
[398586553,1765857078603,-151.0,0.00012154,2]
[398586554,1765857078618,-334.0,0.00012154,2]
[398586555,1765857078633,-151.0,0.00012154,2]
[398586556,1765857078647,-334.0,0.00012154,2]
[398586557,1765857078661,-151.0,0.00012154,2]
[398586558,1765857078676,-231.51257598,0.00012154,2]
[398586559,1765857078690,-156.0,0.00012154,2]
[398586560,1765857078705,-334.0,0.00012154,2]
[398586561,1765857078719,-166.85030243,0.00012154,2]
[398586562,1765857078733,-334.0,0.00012154,2]
[398586563,1765857078748,-334.0,0.00012154,2]
[398586564,1765857078762,-334.0,0.00012154,2]
[398586565,1765857078776,-334.0,0.00012154,2]
[398586566,1765857078791,-334.0,0.00012154,2]
[398586567,1765857078805,-334.0,0.00012154,2]
[398586568,1765857078820,-441.04768803,0.00012154,2]
[398586569,1765857078834,-152.08,0.000122,2]
[398586570,1765857078849,-1862.16509977,0.00012209,2]
[398586571,1765857078863,-166.0,0.00012284,2]
[398586572,1765857078877,-166.0,0.00012284,2]
[398586573,1765857078892,-167.07685419,0.00012284,2]
[398586574,1765857078906,-334.0,0.00012284,2]
[398586575,1765857078921,-334.0,0.00012284,2]
[398586576,1765857078935,-334.0,0.00012284,2]
[398586577,1765857078951,-152.0,0.00012284,2]
[398586578,1765857078966,-334.0,0.00012284,2]
[398586579,1765857078980,-152.0,0.00012284,2]
[398586580,1765857078994,-334.0,0.00012284,2]
[398586581,1765857079012,-334.0,0.00012284,2]
[398586582,1765857079026,-334.0,0.00012284,2]
[398586583,1765857079041,-334.0,0.00012284,2]
[398586584,1765857079056,-152.0,0.00012284,2]
[398586585,1765857079073,-334.0,0.00012284,2]
[398586586,1765857079088,-152.0,0.00012284,2]
[398586587,1765857079102,-152.0,0.00012284,2]
[398586588,1765857079117,-334.0,0.00012284,2]
[398586589,1765857079135,-152.0,0.00012284,2]
[398586590,1765857079149,-152.0,0.00012284,2]
[398586591,1765857079172,-334.0,0.00012284,2]
[398586592,1765857079192,-152.0,0.00012284,2]
[398586593,1765857079211,-152.0,0.00012284,2]
[398586594,1765857079228,-334.0,0.00012284,2]
[398586595,1765857079246,-334.0,0.00012284,2]
[398586596,1765857079263,-334.0,0.00012284,2]
[398586597,1765857079280,-334.0,0.00012284,2]
[398586598,1765857079296,-334.0,0.00012284,2]
[398586599,1765857079312,-334.0,0.00012284,2]
[398586600,1765857079328,-334.0,0.00012284,2]
[398586601,1765857079342,-334.0,0.00012284,2]
[398586602,1765857079357,-334.0,0.00012284,2]
[398586603,1765857079372,-334.0,0.00012284,2]
[398586604,1765857079387,-334.0,0.00012284,2]
[398586605,1765857079401,-334.0,0.00012284,2]
[398586606,1765857079416,-334.0,0.00012284,2]
[398586607,1765857079430,-334.0,0.00012284,2]
[398586608,1765857079444,-334.0,0.00012284,2]
[398586609,1765857079460,-334.0,0.00012284,2]
[398586610,1765857079474,-334.0,0.00012284,2]
[398586611,1765857079489,-334.0,0.00012284,2]
[398586612,1765857079503,-334.0,0.00012284,2]
[398586613,1765857079517,-334.0,0.00012284,2]
[398586614,1765857079532,-334.0,0.00012284,2]
[398586615,1765857079546,-334.0,0.00012284,2]
[398586616,1765857079561,-334.0,0.00012284,2]
[398586617,1765857079575,-334.0,0.00012284,2]
[398586618,1765857079589,-334.0,0.00012284,2]
[398586619,1765857079603,-334.0,0.00012284,2]
[398586620,1765857079618,-334.0,0.00012284,2]
[398586621,1765857079632,-334.0,0.00012284,2]
[398586622,1765857079647,-334.0,0.00012284,2]
[398586623,1765857079661,-334.0,0.00012284,2]
[398586624,1765857079675,-334.0,0.00012284,2]
[398586625,1765857079690,-334.0,0.00012284,2]
[398586626,1765857079705,-334.0,0.00012284,2]
[398586627,1765857079720,-334.0,0.00012284,2]
[398586628,1765857079925,-352.82401232,0.00012284,2]
[398586629,1765857079947,-174.0,0.00012284,2]
[398586630,1765857079956,-174.0,0.00012284,2]
[398586631,1765857079966,-176.68926737,0.00012284,2]
[398586632,1765857079975,-152.0,0.00012284,2]
[398586633,1765857079985,-152.0,0.00012284,2]
[398586634,1765857079994,-152.0,0.00012284,2]
[398586635,1765857080003,-152.0,0.00012284,2]
[398586636,1765857080013,-152.0,0.00012284,2]
[398586637,1765857080023,-152.0,0.00012284,2]
[398586638,1765857080032,-152.0,0.00012284,2]
[398586639,1765857080041,-152.0,0.00012284,2]
[398586640,1765857080050,-152.0,0.00012284,2]
[398586641,1765857080060,-271.90713653,0.00012284,2]
[398586642,1765857080069,-720.0,0.00012294,2]
[398586643,1765857080078,-1862.16509977,0.00012308,2]
[398586644,1765857080087,-514.4932073,0.00012328,2]
[398586645,1765857080096,-3839.6,0.00012328,2]
[398586646,1765857080106,-207.20683155,0.00012328,2]
[398586647,1765857080114,-500.0,0.00012328,2]
[398586648,1765857080124,-500.0,0.00012328,2]
[398586649,1765857080136,-500.0,0.00012328,2]
[398586650,1765857080145,-500.0,0.00012328,2]
[398586651,1765857080154,-500.0,0.00012328,2]
[398586652,1765857080164,-500.0,0.00012328,2]
[398586653,1765857080174,-500.0,0.00012328,2]
[398586654,1765857080185,-500.0,0.00012328,2]
[398586655,1765857080194,-500.0,0.00012328,2]
[398586656,1765857080203,-500.0,0.00012328,2]
[398586657,1765857080216,-500.0,0.00012328,2]
[398586658,1765857080224,-500.0,0.00012328,2]
[398586659,1765857080233,-500.0,0.00012328,2]
[398586660,1765857080242,-500.0,0.00012328,2]
[398586661,1765857080251,-500.0,0.00012328,2]
[398586662,1765857080260,-500.0,0.00012328,2]
[398586663,1765857080270,-500.0,0.00012328,2]
[398586664,1765857080280,-609.81,0.00012328,2]
[398586665,1765857080290,-600.92,0.00012328,2]
[398586666,1765857080301,-500.26,0.00012328,2]
[398586667,1765857080310,-500.0,0.00012328,2]
[398586668,1765857080319,-500.0,0.00012328,2]
[398586669,1765857080328,-635.26,0.00012328,2]
[398586670,1765857080336,-500.0,0.00012328,2]
[398586671,1765857080344,-2131.63,0.00012328,2]
[398586672,1765857080353,-500.0,0.00012328,2]
[398586673,1765857080365,-1239.05,0.00012328,2]
[398586674,1765857080374,-500.0,0.00012328,2]
[398586675,1765857080383,-832.5,0.00012328,2]
[398586676,1765857080392,-500.0,0.00012328,2]
[398586677,1765857080400,-500.0,0.00012328,2]
[398586678,1765857080408,-502.04675557,0.00012328,2]
[398586679,1765857080417,-1281.42,0.00012328,2]
[398586680,1765857080425,-500.0,0.00012328,2]
[398586681,1765857080434,-706.65,0.00012328,2]
[398586682,1765857080443,-500.0,0.00012328,2]
[398586683,1765857080451,-500.0,0.00012328,2]
[398586684,1765857080461,-500.0,0.00012328,2]
[398586685,1765857080473,-500.0,0.00012328,2]
[398586686,1765857080484,-970.13,0.00012328,2]
[398586687,1765857080493,-500.0,0.00012328,2]
[398586688,1765857080502,-500.0,0.00012328,2]
[398586689,1765857080511,-905.09,0.00012328,2]
[398586690,1765857080520,-500.0,0.00012328,2]
[398586691,1765857080529,-500.0,0.00012328,2]
[398586692,1765857080539,-500.0,0.00012328,2]
[398586693,1765857080548,-572.25496484,0.00012328,2]
[398586694,1765857080557,-1438.77,0.00012328,2]
[398586695,1765857080566,-2194.500583,0.00012328,2]
[398586696,1765857080575,-500.0,0.00012328,2]
[398586697,1765857080584,-186.25749805,0.00012328,2]
[398586698,1765857080593,-500.0,0.00012328,2]
[398586699,1765857080602,-867.63,0.00012328,2]
[398586700,1765857080611,-500.81,0.00012328,2]
[398586701,1765857080620,-922.31,0.00012328,2]
[398586702,1765857080631,-500.0,0.00012328,2]
[398586703,1765857080640,-500.0,0.00012328,2]
[398586704,1765857080651,-808.83,0.00012328,2]
[398586705,1765857080661,-500.0,0.00012328,2]
[398586706,1765857080671,-772.63,0.00012328,2]
[398586707,1765857080680,-250.45764501,0.00012328,2]
[398586708,1765857080690,-500.0,0.00012328,2]
[398586709,1765857080700,-500.0,0.00012328,2]
[398586710,1765857080709,-724.68,0.00012328,2]
[398586711,1765857080718,-728.64,0.00012328,2]
[398586712,1765857080728,-1000.0,0.00012328,2]
[398586713,1765857080738,-500.0,0.00012328,2]
[398586714,1765857080747,-788.39,0.00012328,2]
[398586715,1765857080756,-713.19,0.00012328,2]
[398586716,1765857080766,-711.19,0.00012328,2]
[398586717,1765857080780,-248.03471242,0.00012328,2]
[398586718,1765857080790,-1903.91,0.00012328,2]
[398586719,1765857080799,-500.0,0.00012328,2]
[398586720,1765857080808,-500.0,0.00012328,2]
[398586721,1765857080818,-1163.59,0.00012328,2]
[398586722,1765857080827,-541.86,0.00012328,2]
[398586723,1765857080836,-873.56,0.00012328,2]
[398586724,1765857080846,-500.0,0.00012328,2]
[398586725,1765857080855,-500.0,0.00012328,2]
[398586726,1765857080865,-500.0,0.00012328,2]
[398586727,1765857080874,-500.0,0.00012328,2]
[398586728,1765857080883,-500.0,0.00012328,2]
[398586729,1765857080892,-500.0,0.00012328,2]
[398586730,1765857080902,-623.95,0.00012328,2]
[398586731,1765857080911,-500.0,0.00012328,2]
[398586732,1765857080920,-500.0,0.00012328,2]
[398586733,1765857080929,-500.0,0.00012328,2]
[398586734,1765857080937,-500.0,0.00012328,2]
[398586735,1765857080947,-939.88,0.00012328,2]
[398586736,1765857080956,-500.0,0.00012328,2]
[398586737,1765857080966,-514.0,0.00012328,2]
[398586738,1765857080975,-500.0,0.00012328,2]
[398586739,1765857080984,-500.0,0.00012328,2]
[398586740,1765857080994,-500.0,0.00012328,2]
[398586741,1765857081004,-500.0,0.00012328,2]
[398586742,1765857081012,-500.0,0.00012328,2]
[398586743,1765857081023,-1404.96,0.00012328,2]
[398586744,1765857081032,-2624.19,0.00012328,2]
[398586745,1765857081041,-1165.8,0.00012328,2]
[398586746,1765857081051,-782.31,0.00012328,2]
[398586747,1765857081060,-500.0,0.00012328,2]
[398586748,1765857081070,-500.0,0.00012328,2]
[398586749,1765857081079,-500.0,0.00012328,2]
[398586750,1765857081088,-500.0,0.00012328,2]
[398586751,1765857081098,-500.0,0.00012328,2]
[398586752,1765857081107,-500.0,0.00012328,2]
[398586753,1765857081116,-500.0,0.00012328,2]
[398586754,1765857081127,-500.0,0.00012328,2]
[398586755,1765857081137,-500.0,0.00012328,2]
[398586756,1765857081146,-500.0,0.00012328,2]
[398586757,1765857081155,-2047.92,0.00012328,2]
[398586758,1765857081165,-500.0,0.00012328,2]
[398586759,1765857081174,-1419.58,0.00012328,2]
[398586760,1765857081184,-500.0,0.00012328,2]
[398586761,1765857081193,-2858.67,0.00012328,2]
[398586762,1765857081204,-915.74,0.00012328,2]
[398586763,1765857081213,-500.0,0.00012328,2]
[398586764,1765857081222,-561.34,0.00012328,2]
[398586765,1765857081231,-862.14,0.00012328,2]
[398586766,1765857081242,-500.0,0.00012328,2]
[398586767,1765857081252,-728.64,0.00012328,2]
[398586768,1765857081263,-500.0,0.00012328,2]
[398586769,1765857081273,-1196.22,0.00012328,2]
[398586770,1765857081283,-500.0,0.00012328,2]
[398586771,1765857081292,-764.95,0.00012328,2]
[398586772,1765857081302,-1723.48,0.00012328,2]
[398586773,1765857081311,-500.0,0.00012328,2]
[398586774,1765857081320,-795.49,0.00012328,2]
[398586775,1765857081329,-500.0,0.00012328,2]
[398586776,1765857081339,-579.03,0.00012328,2]
[398586777,1765857081348,-527.94,0.00012328,2]
[398586778,1765857081358,-500.0,0.00012328,2]